[Event "Mitropa Cup Open 2024"]
[Site "Apolda"]
[Date "2024.02.18"]
[Round "4.9"]
[White "Baidetskyi, Valentin"]
[Black "Vykouk, Jan"]
[Result "1/2-1/2"]
[ECO "B76"]
[WhiteElo "2499"]
[BlackElo "2493"]
[Annotator "TA"]
[PlyCount "60"]
[EventDate "2024.02.15"]
[EventType "team-tourn"]
[EventCountry "GER"]
[SourceTitle "playchess.com"]
[Source "ChessBase"]
[SourceQuality "1"]
[WhiteTeam "Austria"]
[BlackTeam "Czech Republic"]
[WhiteTeamCountry "AUT"]
[BlackTeamCountry "CZE"]
[TimeControl "40/5400+30:1800+30"]

{[%evp 25,60,59,56,51,68,75,73,71,74,70,62,62,69,55,93,63,131,133,136,136,150,139,135,129,171,173,175,150,206,161,169,0,165,0,166,0,142]} 1. e4 {[%emt 0:00:02]} c5 {[%emt 0:00:06]} 2. Nf3 {[%emt 0:00:32]} d6 {[%emt 0:00:07]} 3. d4 {[%emt 0:00:02]} cxd4 {[%emt 0:00:06]} 4. Nxd4 {[%emt 0:00:02]} Nf6 {[%emt 0:00:09]} 5. Nc3 {[%emt 0:00:02]} g6 {[%emt 0:00:07]} 6. Be3 {[%emt 0:00:38]} Bg7 {[%emt 0:00:06]} 7. f3 {[%emt 0:00:04]} O-O {[%emt 0:00:37]} 8. Qd2 {[%emt 0:00:04]} Nc6 {[%emt 0:00:05]} 9. O-O-O {[%emt 0:00:06]} d5 {[%emt 0:00:04]} 10. exd5 {[%emt 0:00:54]} Nxd5 {[%emt 0:00:19]} 11. Nxc6 {[%emt 0:00:05]} bxc6 {[%emt 0:00:05]} 12. Bd4 {[%emt 0:00:07]} e5 {[%emt 0:00:18]} 13. Bc5 {[%emt 0:00:04]} Re8 {[%emt 0:00:04]} 14. Ne4 {[%emt 0:00:32]} Qc7 {[%emt 0:11:11]} 15. h4 {[%emt 0:00:48][%cal Bh2h4,Bh4h5][%mdl 32]} h6 {[%emt 0:02:15]} 16. h5 {[%emt 0:18:25] White is better.} g5 {[%emt 0:00:21]} 17. Bc4 {[%emt 0:39:17]} Be6 {[%emt 0:02:43]} 18. g4 {[%emt 0:00:18]} Red8 {[%emt 0:03:41]} 19. Qf2 {[%emt 0:02:20] White has more active pieces.} Qa5 {[%emt 0:15:01]} 20. Rd3 {[%emt 0:12:03]} Qa4 {[%emt 0:04:28]} (20... Nf4 $14 21. Ra3 Qc7 22. Bxe6 (22. Rxa7 Rxa7 23. Bxe6 Nxe6 $11) 22... Nxe6) 21. Bb3 $16 {[%emt 0:02:33]} Qa6 {[%emt 0:00:25]} 22. Rhd1 $36 {[%emt 0:00:54][%mdl 2048] [#] Black must now prevent c4. White has strong initiative.} Rdb8 {[%emt 0:00:16]} 23. Bd6 {[%emt 0:05:37]} Re8 {[%emt 0:06:29]} 24. R3d2 {[%emt 0:04:05]} Qb6 {[%emt 0:04:12]} 25. Bc5 {[%emt 0:02:07]} Qa5 {[%emt 0:01:16]} 26. Kb1 {[%emt 0:02:53]} Rab8 {[%emt 0:04:20]} (26... Nf4 $16 27. Bxe6 Nxe6) 27. Bd6 $18 {[%emt 0:02:04]} (27. Bxa7 Rxb3 28. cxb3 (28. axb3 $2 Ra8 $17) 28... Ra8 $15) 27... Rbd8 {[%emt 0:03:25]} 28. Bc5 {[%emt 0:02:14]} Rb8 $1 {[%emt 0:00:59]} 29. Bd6 {[%emt 0:00:09]} ({Inferior is} 29. Bxa7 Rxb3 30. cxb3 (30. axb3 $2 {is the wrong capture.} Ra8 $17) 30... Ra8 $11) 29... Rbd8 {[%emt 0:00:05]} 30. Bc5 {[%emt 0:01:46]} Rb8 $1 {Weighted Error Value: White=0.37/Black=0.13 (very precise) .  Mistake:       	---       	Black=2      Inaccurate:     	White=1     	Black=2      OK:         	White=8     	Black=7      Best:        	White=1     	---        Strong:       	---       	Black=2} 1/2-1/2

[Event "Mitropa Cup Open 2024"]
[Site "Apolda"]
[Date "2024.02.18"]
[Round "4.10"]
[White "Stalmach, Richard"]
[Black "Peyrer, Konstantin"]
[Result "1-0"]
[ECO "D37"]
[WhiteElo "2433"]
[BlackElo "2439"]
[Annotator "TA"]
[PlyCount "87"]
[EventDate "2024.02.15"]
[EventType "team-tourn"]
[EventCountry "GER"]
[SourceTitle "playchess.com"]
[Source "ChessBase"]
[SourceQuality "1"]
[WhiteTeam "Czech Republic"]
[BlackTeam "Austria"]
[WhiteTeamCountry "CZE"]
[BlackTeamCountry "AUT"]
[TimeControl "40/5400+30:1800+30"]

{[%evp 11,87,44,50,35,53,34,43,40,54,41,43,34,60,27,79,77,82,72,92,83,131,55,49,67,67,65,74,64,97,86,86,77,65,66,81,81,79,25,15,30,14,23,27,18,22,19,22,16,4,33,53,21,112,106,105,102,198,97,126,147,237,244,233,221,221,217,416,406,416,415,543,442,408,406,552,529,849,822]} 1. d4 {[%emt 0:00:04]} Nf6 {[%emt 0:00:05]} 2. c4 {[%emt 0:00:05]} e6 {[%emt 0:00:05]} 3. Nf3 {[%emt 0:00:05]} d5 {[%emt 0:00:04]} 4. Nc3 {[%emt 0:00:10]} Nbd7 {[%emt 0:00:14]} 5. e3 {[%emt 0:04:05]} b6 {[%emt 0:06:34]} 6. cxd5 {[%emt 0:05:54]} exd5 {[%emt 0:00:07]} 7. Bb5 {[%emt 0:04:30][%cal Bf1b5,Bb5d3,Bd3f5][%mdl 32] Black must now prevent Ne5.} Bb7 {[%emt 0:00:11]} 8. Ne5 $1 {[%emt 0:01:33]} Qc8 {[%emt 0:00:30]} 9. O-O {[%emt 0:10:03] White is slightly better.} c6 {[%emt 0:08:02]} 10. Bd3 {[%emt 0:01:29]} Be7 {[%emt 0:06:29]} 11. f4 {[%emt 0:03:27]} O-O {[%emt 0:00:39]} 12. Qf3 {[%emt 0:05:04]} Rd8 {[%emt 0:05:31]} (12... b5 $11) 13. Bd2 $16 {[%emt 0:04:15]} c5 {[%emt 0:06:08][%cal Of6e4]} 14. Rac1 {[%emt 0:03:52]} a6 {[%emt 0:07:34]} 15. Bf5 {[%emt 0:04:17] White is much more active.} c4 {[%emt 0:01:18]} (15... Qc7 $142) 16. Nxd7 {[%emt 0:13:02]} ({White should try} 16. Qh3 $16) 16... Rxd7 $14 {[%emt 0:00:31]} 17. g4 {[%emt 0:01:29][%cal Bg2g4,Bg4g5][%mdl 32]} g6 {[%emt 0:02:33][%cal Bg7g6,Bg6f5,Bf5f4][%mdl 32]} 18. Bxd7 {[%emt 0:00:45]} Qxd7 {[%emt 0:00:13]} 19. g5 {[%emt 0:00:56]} Ne4 {[%emt 0:00:06]} 20. Nxe4 {[%emt 0:00:35]} dxe4 {[%emt 0:00:04]} 21. Qg2 {[%emt 0:03:28]} Bd5 {[%emt 0:01:04] [#]} 22. f5 $1 {[%emt 0:03:43]} gxf5 {[%emt 0:00:13]} 23. Qh3 {[%emt 0:00:06]} Be6 {[%emt 0:03:16] [#]} 24. d5 {[%emt 0:00:08]} Qxd5 $11 {[%emt 0:00:04]} (24... Bxd5 $2 25. Bc3 (25. Qxf5 Rd8 $16) (25. Rxf5 $2 Be6 $19) 25... Qc6 26. Rcd1 $18 (26. Qxf5 Qe6 $18) (26. Rxf5 Rd8 $18)) 25. Bc3 {[%emt 0:00:14] Hoping for Qh6.} f4 $1 {[%emt 0:02:19]} 26. Qh6 {[%emt 0:00:39][%csl Gc3][%cal Rh6g7] Dancing on a razor blade.} Qxg5+ {[%emt 0:00:18]} 27. Qxg5+ {[%emt 0:00:03]} Bxg5 {[%emt 0:00:05] A strong pair of Bishops.} 28. exf4 {[%emt 0:00:03]} Be7 {[%emt 0:00:15]} 29. f5 $36 {[%emt 0:01:37][%mdl 3072] White has compensation. White has the initiative.} Bc5+ {[%emt 0:00:16]} 30. Kg2 $1 {[%emt 0:00:58]} Bd5 {[%emt 0:00:32]} 31. Rf4 {[%emt 0:02:33]} e3+ {[%emt 0:11:00]} (31... h5 $1 $11) 32. Kf1 $16 {[%emt 0:01:19]} Re8 {[%emt 0:00:13]} 33. Ke2 {[%emt 0:02:14] Strongly threatening Rd1.} Re4 {[%emt 0:00:52]} (33... Kf8 $16) 34. Rg1+ {[%emt 0:01:28]} ({Better is} 34. Rxe4 $18 Bxe4 35. Bd4 (35. Rg1+ Kf8 $11)) 34... Kf8 {[%emt 0:00:05]} 35. Rgg4 {[%emt 0:00:33]} Rxf4 {[%emt 0:02:52]} (35... Re8 $16 {keeps fighting.}) 36. Rxf4 {[%emt 0:00:46][%mdl 4096] Endgame. KRB-KB} Ke7 {[%emt 0:00:06]} 37. Bd4 {[%emt 0:00:48]} Bxd4 {[%emt 0:00:35]} 38. Rxd4 $18 {[%emt 0:00:12] KR-KB} Kd6 {[%emt 0:00:05]} (38... c3 {was necessary.} 39. bxc3 (39. Rxd5 $2 {loses.} c2 $19) 39... Bxa2 40. Kxe3 a5) 39. Kxe3 {[%emt 0:00:56]} Ke5 {[%emt 0:00:04]} 40. Rh4 {[%emt 0:00:32]} Kxf5 {[%emt 0:00:56]} 41. Kd4 {[%emt 0:31:01]} (41. Rxh7 Ke5 42. h4 c3 43. bxc3 b5) 41... Be6 {[%emt 0:35:13]} 42. Rxh7 {[%emt 0:00:04]} b5 {[%emt 0:01:02]} 43. a3 {[%emt 0:02:09]} a5 {[%emt 0:01:54]} 44. Rh5+ {[%emt 0:00:15] Weighted Error Value: White=0.15 (very precise) /Black=0.31.  Mistake:       	White=3     	Black=6      Inaccurate:     	White=2     	Black=4      OK:         	White=19    	Black=13     Best:        	White=3     	Black=2      Strong:       	White=2     	Black=1} 1-0

[Event "Mitropa Cup Open 2024"]
[Site "Apolda"]
[Date "2024.02.18"]
[Round "4.11"]
[White "Morgunov, Marc"]
[Black "Gnojek, Petr"]
[Result "1-0"]
[ECO "B81"]
[WhiteElo "2368"]
[BlackElo "2428"]
[Annotator "TA"]
[PlyCount "67"]
[EventDate "2024.02.15"]
[EventType "team-tourn"]
[EventCountry "GER"]
[SourceTitle "playchess.com"]
[Source "ChessBase"]
[SourceQuality "1"]
[WhiteTeam "Austria"]
[BlackTeam "Czech Republic"]
[WhiteTeamCountry "AUT"]
[BlackTeamCountry "CZE"]
[TimeControl "40/5400+30:1800+30"]

{[%evp 16,66,42,34,37,32,44,43,38,36,51,64,75,95,78,85,86,90,88,78,72,82,77,43,64,23,79,73,88,40,47,47,318,318,306,315,379,391,392,391,389,384,636,625,663,660,847,844,872,859,879,875,1235]} 1. e4 {[%emt 0:00:08]} c5 {[%emt 0:00:07]} 2. Nf3 {[%emt 0:00:37]} d6 {[%emt 0:00:12]} 3. d4 {[%emt 0:00:40]} cxd4 {[%emt 0:00:08]} 4. Nxd4 {[%emt 0:00:05]} Nf6 {[%emt 0:00:07]} 5. Nc3 {[%emt 0:00:24]} e6 {[%emt 0:00:27]} 6. g4 {[%emt 0:01:58]} h6 {[%emt 0:00:12]} 7. Rg1 {[%emt 0:02:44]} Nc6 {[%emt 0:00:12]} 8. Be3 {[%emt 0:00:36]} Be7 {[%emt 0:01:23]} 9. Qe2 {[%emt 0:02:19]} Nxd4 {[%emt 0:00:37]} 10. Bxd4 {[%emt 0:00:05]} e5 {[%emt 0:00:09]} 11. Be3 {[%emt 0:00:12]} Be6 {[%emt 0:00:15] White is slightly better.} 12. O-O-O {[%emt 0:03:52]} Qa5 {[%emt 0:00:52][%cal Oe8c8]} 13. h4 {[%emt 0:10:13]} Nd7 {[%emt 0:22:51][%cal Oa7a6]} 14. Qb5 {[%emt 0:08:19]} Qc7 {[%emt 0:01:08][%cal Oa8c8]} 15. g5 {[%emt 0:05:06] White is much more active.} hxg5 {[%emt 0:06:08]} 16. hxg5 {[%emt 0:07:38]} g6 {[%emt 0:02:24]} 17. Nd5 {[%emt 0:04:18]} Bxd5 {[%emt 0:00:06]} 18. Qxd5 {[%emt 0:00:16]} Rc8 {[%emt 0:00:33]} 19. Qd2 {[%emt 0:06:28][%cal Of1b5]} (19. Bxa7 $2 Qxc2#) (19. c3 {simplifies} Qc6 20. Be2 Qxd5 21. exd5 Nb6 22. Rg4) 19... Kf8 {[%emt 0:07:51]} 20. Rg3 {[%emt 0:10:21][%cal Of2f4]} (20. Bxa7 $2 b6 21. Ba6 Ra8 $19) (20. Kb1 {simplifies} Nc5 21. Bd3 Nxd3 22. cxd3 Qd7 23. d4) 20... Kg7 {[%emt 0:05:42]} (20... Nb6 $11 {keeps the balance.}) 21. Bh3 {[%emt 0:00:53][%cal Of2f4]} (21. Bxa7 $2 b6 22. Ba6 (22. Ra3 $2 Bxg5 23. Re3 Bxe3 $19) 22... Ra8 $19 (22... Qxa7 $2 23. Bxc8 Rxc8 24. Kb1 $19)) 21... Rh4 {[%emt 0:11:03] [#]} 22. f4 {[%emt 0:03:03]} (22. Bxa7 $6 Ra8 23. Be3 Rxa2 $11) (22. Kb1 $1 $16) 22... exf4 $14 {[%emt 0:00:55]} 23. Bxf4 {[%emt 0:00:40]} Rch8 $2 {[%emt 0:06:25][%mdl 8192] [#] This move loses the game for Black.} ({Black should try} 23... Rxf4 $14 24. Rc3 (24. Bxd7 Rf3 $11) 24... Qa5 25. Qd4+ (25. Rxc8 Qxd2+ 26. Kxd2 Nc5 $11) 25... Qe5 26. Qxe5+ (26. Rxc8 Bxg5 27. Qxe5+ dxe5 $15) 26... dxe5 27. Rxc8 Bxg5) 24. Bxd7 $1 $18 {[%emt 0:01:56]} ({Worse is} 24. Bxd6 Bxd6 25. Qxd6 Qxd6 26. Rxd6 Nc5 $11 (26... Rxh3 $2 27. Rxh3 Rxh3 28. Rxd7 $18)) 24... Qxd7 {[%emt 0:03:55]} 25. Be5+ {[%emt 0:00:59]} ({Less strong is} 25. Bxd6 Qe6 $16) 25... Kg8 {[%emt 0:00:44]} 26. Bxh8 {[%emt 0:00:09]} Kxh8 {[%emt 0:00:03]} 27. e5 {[%emt 0:01:51]} d5 {[%emt 0:00:36]} 28. Qxd5 {[%emt 0:01:43]} Qf5 {[%emt 0:00:05]} (28... Qxd5 29. Rxd5 Kg8) 29. Kb1 {[%emt 0:01:47] White is clearly winning.} Rh2 {[%emt 0:03:07]} 30. Qb3 {[%emt 0:04:55] Black must now prevent Rf3.} (30. Qxb7 $2 Qxc2+ 31. Ka1 Qxd1#) 30... Bxg5 {[%emt 0:00:33]} 31. Rf3 {[%emt 0:01:26]} (31. Qxb7 $2 Qxc2+ 32. Ka1 Qxd1#) 31... Bf4 {[%emt 0:00:36]} 32. e6 {[%emt 0:00:14]} (32. Qxb7 $2 Qxc2+ 33. Ka1 Qxd1#) 32... fxe6 {[%emt 0:04:37]} 33. Rd8+ {[%emt 0:00:47]} (33. Qxb7 $2 {leads to mate.} Qxc2+ 34. Ka1 Qxd1#) 33... Kh7 {[%emt 0:00:07]} 34. Qxb7+ {[%emt 0:00:20] Weighted Error Value: White=0.10 (very precise) /Black=0.46.  Loses game:     	---       	Black=1      Mistake:       	White=1     	Black=2      Inaccurate:     	White=2     	---        OK:         	White=10    	Black=5      Best:        	White=1     	Black=2      Strong:       	White=1     	---} 1-0

[Event "Mitropa Cup Open 2024"]
[Site "Apolda"]
[Date "2024.02.18"]
[Round "4.12"]
[White "Nemec, Jachym"]
[Black "Dotzer, Lukas"]
[Result "1-0"]
[ECO "E46"]
[WhiteElo "2393"]
[BlackElo "2335"]
[Annotator "TA"]
[PlyCount "105"]
[EventDate "2024.02.15"]
[EventType "team-tourn"]
[EventCountry "GER"]
[SourceTitle "playchess.com"]
[Source "ChessBase"]
[SourceQuality "1"]
[WhiteTeam "Czech Republic"]
[BlackTeam "Austria"]
[WhiteTeamCountry "CZE"]
[BlackTeamCountry "AUT"]
[TimeControl "40/5400+30:1800+30"]

{[%evp 9,104,2,2,9,7,0,8,0,0,-11,10,17,15,17,21,4,8,18,16,11,41,41,147,-13,0,0,-5,-47,-54,-52,-54,-57,-59,-70,-69,-138,-137,-154,-165,-188,-106,-102,7,7,21,18,56,8,8,0,7,3,0,0,0,0,0,0,9,1,5,5,8,0,0,-5,0,0,0,0,0,0,31,23,44,31,41,0,0,0,0,0,2,0,0,0,37,25,186,186,122,122,29997,29998,29998,29999,29999]} 1. d4 {[%emt 0:00:02]} Nf6 {[%emt 0:00:04]} 2. c4 {[%emt 0:00:09]} e6 {[%emt 0:00:05]} 3. Nc3 {[%emt 0:00:29]} Bb4 {[%emt 0:00:07]} 4. e3 {[%emt 0:00:17]} O-O {[%emt 0:00:07]} 5. Nge2 {[%emt 0:00:05]} c6 {[%emt 0:01:44]} 6. a3 {[%emt 0:00:34]} Ba5 {[%emt 0:01:36]} 7. b4 {[%emt 0:01:31]} Bc7 {[%emt 0:00:14]} 8. Bb2 {[%emt 0:02:06] The position is equal.} d5 {[%emt 0:03:33]} 9. Ng3 {[%emt 0:02:04]} e5 {[%emt 0:06:43]} 10. cxd5 {[%emt 0:05:36]} exd4 {[%emt 0:03:38]} 11. Qxd4 {[%emt 0:00:14]} cxd5 {[%emt 0:02:08]} 12. Rd1 {[%emt 0:08:53][%cal Rc3d5]} Nc6 {[%emt 0:06:02]} 13. Qh4 {[%emt 0:02:34]} Be5 {[%emt 0:07:41]} 14. Bd3 {[%emt 0:05:32][%cal Oc3d5]} g6 {[%emt 0:07:52]} 15. b5 {[%emt 0:14:30]} Na5 {[%emt 0:07:49]} (15... Nd7 $14 16. Qxd8 Nxd8) 16. O-O $2 {[%emt 0:15:10] White is more active.} (16. f4 $16 Bc7 17. Nxd5 Nxd5 18. Qh6) 16... Ng4 $11 {[%emt 0:03:30]} 17. Qxd8 {[%emt 0:05:50]} Rxd8 {[%emt 0:00:06]} 18. e4 {[%emt 0:13:32]} dxe4 {[%emt 0:06:12]} 19. Bxe4 {[%emt 0:00:02]} Be6 {[%emt 0:03:36]} 20. Rfe1 {[%emt 0:06:34]} Bd4 {[%emt 0:06:40]} 21. Rxd4 {[%emt 0:07:25]} Rxd4 {[%emt 0:00:08]} 22. Nce2 {[%emt 0:00:07]} (22. h3 $15 Nc4 23. Ba1) 22... Rd7 $1 $17 {[%emt 0:04:17]} 23. h3 {[%emt 0:01:45]} Nc4 {[%emt 0:01:42]} 24. Ba1 {[%emt 0:02:08]} Nge5 {[%emt 0:06:16]} ({Black should try} 24... Nh6 $1 $19 25. Bc2 Nxa3) 25. Nd4 {[%emt 0:01:14]} Bd5 {[%emt 0:05:35]} (25... Nxa3 26. Nxe6 Re8 27. Nc5 $11) (25... Rad8 $17 26. f4 Rxd4 27. Bxd4 Rxd4 28. fxe5 Nxa3 29. Bxb7 Rb4 (29... Nxb5 30. Ne4 $17)) 26. f4 $11 {[%emt 0:00:55]} Re8 {[%emt 0:05:40][%cal Ba8e8,Be8e5,Be5e3][%mdl 32]} 27. fxe5 {[%emt 0:00:04]} Rxe5 {[%emt 0:05:08]} 28. Rc1 {[%emt 0:00:18]} (28. Nf3 $14 Re8 29. Kf2) 28... Nb6 $132 {[%emt 0:02:38][%mdl 2048] Black is not holding back} 29. Bxd5 {[%emt 0:00:28]} Rdxd5 {[%emt 0:02:05]} 30. Nge2 {[%emt 0:02:11]} Rc5 {[%emt 0:00:47] aiming for ...Rxc1+.} 31. Rf1 {[%emt 0:00:39]} Re3 {[%emt 0:00:46] Dodges Nb3} 32. Rd1 {[%emt 0:01:26]} Nd5 {[%emt 0:01:07]} 33. Bb2 {[%emt 0:00:35]} f5 {[%emt 0:00:41]} 34. Kf2 {[%emt 0:01:12]} Re8 {[%emt 0:00:37]} 35. Rd3 {[%emt 0:00:18]} Nf6 {[%emt 0:00:24]} 36. a4 {[%emt 0:01:11]} Ne4+ {[%emt 0:00:31]} 37. Kg1 {[%emt 0:00:01]} Rd8 {[%emt 0:00:30]} 38. Re3 {[%emt 0:00:34]} Rc4 {[%emt 0:00:25]} 39. g4 {[%emt 0:00:17]} Rxa4 {[%emt 0:00:37]} 40. gxf5 {[%emt 0:00:06]} gxf5 {[%emt 0:00:23]} 41. Nxf5 {[%emt 0:09:42]} Rd1+ {[%emt 0:11:19]} 42. Kg2 {[%emt 0:00:27] Hoping for Rf3.} Ra2 {[%emt 0:02:37]} 43. Rxe4 {[%emt 0:10:29]} (43. Be5 {is more complex.} Re1 44. Nfd4 Nc3 45. Kf3) 43... Rxb2 {[%emt 0:00:28]} 44. Kf3 {[%emt 0:01:49]} Rxb5 {[%emt 0:04:39]} 45. Ned4 {[%emt 0:00:12]} Rb6 {[%emt 0:01:59]} 46. Kf4 {[%emt 0:01:27]} Rf1+ {[%emt 0:06:06]} 47. Ke5 {[%emt 0:00:07]} Kf7 {[%emt 0:02:19]} 48. Nd6+ {[%emt 0:02:08][%mdl 1024] White has compensation. A dynamic duo of knights.} Kg6 $2 {[%emt 0:00:54] [#]} (48... Kf8 $1 $11) 49. Rg4+ $1 $18 {[%emt 0:00:16]} Kh5 {[%emt 0:00:37] [#]} (49... Kh6 $18 50. N6f5+ Rxf5+ 51. Nxf5+ Kh5 52. Ng7+ Kh6) 50. Ne4 $1 $16 {[%emt 0:01:10] Ng3+ would kill now.} Re1 $2 {[%emt 0:02:46][%mdl 8192]} (50... Kh6 $16) 51. Rg5+ {[%emt 0:00:22] White mates.} Kh4 {[%emt 0:00:31]} 52. Nf3+ {[%emt 0:00:05]} Kxh3 {[%emt 0:00:05]} 53. Rg3# {[%emt 0:10:08] White used his chance.   Weighted Error Value: White=0.11 (very precise) /Black=0.34.  Loses game:     	---       	Black=2      Mistake:       	White=3     	Black=4      Inaccurate:     	White=2     	Black=4      OK:         	White=19    	Black=18     Best:        	White=4     	Black=1      Strong:       	White=1     	Black=1} 1-0

[Event "Mitropa Cup Open 2024"]
[Site "Apolda"]
[Date "2024.02.18"]
[Round "4.13"]
[White "Georgiadis, Nico"]
[Black "Subelj, Jan"]
[Result "1/2-1/2"]
[ECO "C60"]
[WhiteElo "2547"]
[BlackElo "2512"]
[Annotator "TA"]
[PlyCount "89"]
[EventDate "2024.02.15"]
[EventType "team-tourn"]
[EventCountry "GER"]
[SourceTitle "playchess.com"]
[Source "ChessBase"]
[SourceQuality "1"]
[WhiteTeam "Switzerland"]
[BlackTeam "Slovenia"]
[WhiteTeamCountry "SUI"]
[BlackTeamCountry "SLO"]
[TimeControl "40/5400+30:1800+30"]

{[%evp 18,89,40,13,44,36,36,23,24,-10,0,0,20,24,39,6,26,14,18,15,18,0,22,20,75,75,59,58,81,68,58,45,57,47,94,97,97,77,90,63,90,86,77,52,62,0,15,12,12,11,8,12,26,20,16,0,0,0,0,0,0,0,0,0,0,0,0,0,7,0,8,8,9,0]} 1. e4 {[%emt 0:00:04]} e5 {[%emt 0:00:42]} 2. Nf3 {[%emt 0:00:07]} Nc6 {[%emt 0:00:15]} 3. Bb5 {[%emt 0:00:06]} a6 {[%emt 0:00:32]} 4. Ba4 {[%emt 0:00:06]} Nf6 {[%emt 0:00:16]} 5. O-O {[%emt 0:00:09]} d6 {[%emt 0:00:39]} 6. c3 {[%emt 0:11:32]} Bd7 {[%emt 0:00:30]} 7. Re1 {[%emt 0:01:17]} g6 {[%emt 0:00:21]} 8. d4 {[%emt 0:00:20]} Bg7 {[%emt 0:00:40]} 9. Nbd2 {[%emt 0:08:43]} O-O {[%emt 0:01:35]} 10. h3 {[%emt 0:00:14]} exd4 {[%emt 0:01:54]} 11. cxd4 {[%emt 0:00:24]} Nb4 {[%emt 0:00:15]} 12. Bxd7 {[%emt 0:07:28]} Qxd7 {[%emt 0:00:11] White has an edge.} 13. e5 {[%emt 0:01:49]} Nfd5 {[%emt 0:31:55]} 14. Ne4 {[%emt 0:02:35]} Qc6 {[%emt 0:10:32]} 15. Re2 {[%emt 0:10:20] Dodges Nc2} Qb6 {[%emt 0:01:05]} 16. Bg5 {[%emt 0:11:21][%cal Bc1g5,Bg5h4,Bh4g3][%mdl 32]} h6 {[%emt 0:01:40]} 17. Bh4 {[%emt 0:02:23]} Nf4 {[%emt 0:07:33]} 18. Rd2 {[%emt 0:02:08]} Nbd5 {[%emt 0:02:16]} 19. Rc1 {[%emt 0:03:27]} g5 {[%emt 0:06:09]} 20. Bg3 {[%emt 0:00:52]} f5 {[%emt 0:02:29]} (20... Rfe8 $11 {keeps the balance.}) 21. exf6 $16 {[%emt 0:03:18]} Nxf6 {[%emt 0:00:07]} 22. Nxf6+ {[%emt 0:02:27]} Rxf6 {[%emt 0:01:45]} 23. Bxf4 {[%emt 0:03:04]} Rxf4 {[%emt 0:00:15]} 24. Re2 {[%emt 0:05:15] Prevents Re8} Rf7 {[%emt 0:01:57] Wards off Re7} 25. d5 {[%emt 0:06:20]} Raf8 {[%emt 0:02:47]} (25... Qb5 $14) 26. b3 {[%emt 0:01:27]} Qb5 {[%emt 0:01:30]} 27. Rc4 {[%emt 0:01:58]} Qd7 {[%emt 0:02:30]} 28. Qd3 {[%emt 0:00:49] White is more active.} Re7 {[%emt 0:04:00]} 29. Rxe7 {[%emt 0:02:24]} Qxe7 {[%emt 0:00:05] Black is weak on the light squares} 30. a4 {[%emt 0:03:53]} Qf7 {[%emt 0:01:12]} 31. h4 {[%emt 0:01:05]} (31. Qc2 $14) 31... Qf5 {[%emt 0:07:48]} 32. Qxf5 {[%emt 0:00:08]} Rxf5 {[%emt 0:00:04][%cal Bf8f5,Bf5d5,Bd5d1][%mdl 32]} 33. hxg5 {[%emt 0:00:16]} hxg5 {[%emt 0:00:07]} 34. Rxc7 $11 {[%emt 0:01:35][%mdl 4096] Endgame. KRB-KRN} g4 {[%emt 0:00:07]} 35. Nh4 {[%emt 0:01:19]} Rxd5 {[%emt 0:00:07] The position is equal.} 36. Rxb7 {[%emt 0:02:44] With the idea Kf1.} Rd1+ {[%emt 0:00:21]} 37. Kh2 {[%emt 0:00:04]} Be5+ {[%emt 0:00:04]} 38. g3 {[%emt 0:00:18] [#] Threatens to win with Nf5.} Rd2 {[%emt 0:00:04]} 39. Kg1 {[%emt 0:00:36]} (39. Kg2 $5 Bd4 $8 40. Kh1 $11 (40. Rb8+ Kf7 $15)) 39... Bd4 {[%emt 0:00:24]} 40. Nf5 {[%emt 0:00:43][%cal Of5d4] Strongly threatening Nxd4!} Bxf2+ {[%emt 0:01:25]} 41. Kf1 {[%emt 0:30:39] next b4 is good for White.} Bc5 {[%emt 0:32:16] [#] Hoping for ...Rf2+.} 42. Nh6+ {[%emt 0:01:06]} Kf8 {[%emt 0:01:05]} 43. b4 {[%emt 0:00:58]} Rf2+ {[%emt 0:01:14]} 44. Ke1 {[%emt 0:01:14]} Bd4 {[%emt 0:00:05]} 45. Nxg4 {[%emt 0:00:00] Weighted Error Value: White=0.10 (very precise) /Black=0.10 (very precise) .  Mistake:       	White=1     	Black=2      Inaccurate:     	White=2     	Black=1      OK:         	White=13    	Black=10     Best:        	White=3     	Black=5} 1/2-1/2